[Event "4th Paytakht Cup 2019"]
[Site "Tehran"]
[Date "2019.11.03"]
[Round "5.5"]
[White "Veisi, Bardia"]
[Black "Timofeev, Artyom"]
[Result "1/2-1/2"]
[ECO "D28"]
[WhiteElo "2316"]
[BlackElo "2595"]
[Annotator "RC"]
[PlyCount "117"]
[EventDate "2019.10.30"]
[EventType "swiss"]
[EventCountry "IRI"]
[SourceTitle "playchess.com"]
[Source "ChessBase"]
[SourceQuality "1"]
[TimeControl "5400+30"]

1. d4 {[%emt 0:01:24]} d5 {[%emt 0:00:00]} 2. c4 {[%emt 0:00:06]} dxc4 {[%emt 0:00:22]} 3. e3 {[%emt 0:03:54]} Nf6 {[%emt 0:00:29]} 4. Bxc4 {[%emt 0:00:09]} e6 {[%emt 0:00:09]} 5. Nf3 {[%emt 0:00:05]} a6 {[%emt 0:00:48]} 6. O-O {[%emt 0:00:34]} c5 {[%emt 0:00:17]} 7. Qe2 {[%emt 0:08:24]} Nc6 {[%emt 0:00:40]} 8. a4 {[%emt 0:06:19]} cxd4 {[%emt 0:04:06]} 9. Rd1 {[%emt 0:00:08]} Nb4 {[%emt 0:10:50]} 10. exd4 {[%emt 0:02:11]} Be7 {[%emt 0:02:46]} 11. Nc3 {[%emt 0:01:02]} O-O {[%emt 0:00:33]} 12. Ne5 {[%emt 0:00:49]} Nbd5 {[%emt 0:09:23]} 13. Rd3 {[%emt 0:08:26]} Bd7 {[%emt 0:02:04]} 14. Rh3 {[%emt 0:05:01]} Rc8 {[%emt 0:03:12]} 15. Bg5 {[%emt 0:04:59]} Bc6 {[%emt 0:01:57]} 16. Re1 {[%emt 0:26:04]} Rc7 {[%emt 0:04:48]} 17. Bb3 {[%emt 0:05:14]} Nb4 {[%emt 0:06:11]} 18. Qd2 {[%emt 0:16:17]} Bd5 {[%emt 0:01:57]} 19. Bd1 {[%emt 0:00:54]} Ne8 {[%emt 0:04:30]} 20. Bf4 {[%emt 0:02:20]} Nd6 {[%emt 0:00:48]} 21. Qe2 {[%emt 0:00:55]} g6 {[%emt 0:01:13]} 22. Ng4 {[%emt 0:00:11]} Bc4 {[%emt 0:02:50]} 23. Qd2 {[%emt 0:01:19]} Nd5 {[%emt 0:06:48]} 24. Nxd5 {[%emt 0:04:10]} Bxd5 {[%emt 0:00:05]} 25. Be5 {[%emt 0:00:07]} Bg5 {[%emt 0:01:31]} 26. f4 {[%emt 0:00:47]} f5 {[%emt 0:00:06]} 27. fxg5 {[%emt 0:00:16]} fxg4 {[%emt 0:00:05]} 28. Bxd6 {[%emt 0:01:06]} gxh3 {[%emt 0:02:15]} 29. Bxc7 {[%emt 0:00:07]} Qxc7 {[%emt 0:00:09]} 30. gxh3 {[%emt 0:00:15]} Qf4 {[%emt 0:06:33]} 31. Qxf4 {[%emt 0:00:10]} Rxf4 {[%emt 0:00:05]} 32. Bg4 {[%emt 0:00:06]} Rxd4 {[%emt 0:00:12]} 33. Bxe6+ {[%emt 0:00:07]} Kf8 {[%emt 0:00:17]} 34. Bxd5 {[%emt 0:01:55]} Rxd5 {[%emt 0:00:06]} 35. Re4 {[%emt 0:00:16]} Rxg5+ {[%emt 0:00:27]} 36. Kf2 {[%emt 0:00:10]} Kf7 {[%emt 0:00:32]} 37. Rc4 {[%emt 0:00:50]} Re5 {[%emt 0:00:17]} 38. Rc7+ {[%emt 0:00:41]} Re7 {[%emt 0:00:06]} 39. Rxe7+ {[%emt 0:00:18]} Kxe7 {[%emt 0:00:05]} 40. Ke3 {[%emt 0:00:06]} Kf6 {[%emt 0:03:23]} 41. Kd4 {[%emt 0:00:35]} Kg5 {[%emt 0:02:20]} 42. Kc5 {[%emt 0:00:08]} Kh4 {[%emt 0:00:07]} 43. Kb6 {[%emt 0:00:04]} Kxh3 {[%emt 0:00:05]} 44. Kxb7 {[%emt 0:00:07]} a5 {[%emt 0:03:03]} 45. Ka6 {[%emt 0:00:08]} Kxh2 {[%emt 0:00:06]} 46. Kxa5 {[%emt 0:00:05]} g5 {[%emt 0:00:05]} 47. b4 {[%emt 0:00:06]} g4 {[%emt 0:00:04]} 48. b5 {[%emt 0:00:03]} g3 {[%emt 0:00:05]} 49. b6 {[%emt 0:00:05]} g2 {[%emt 0:00:04]} 50. b7 {[%emt 0:00:06]} g1=Q {[%emt 0:00:07]} 51. b8=Q+ {[%emt 0:00:09]} Kh3 {[%emt 0:00:12]} 52. Qb3+ {[%emt 0:00:28]} Kh4 {[%emt 0:00:26]} 53. Ka6 {[%emt 0:01:16]} Qg6+ {[%emt 0:01:18]} 54. Kb5 {[%emt 0:03:08]} Qe8+ {[%emt 0:00:28]} 55. Kb4 {[%emt 0:00:28]} Qe7+ {[%emt 0:00:27]} 56. Kb5 {[%emt 0:00:46]} Qe8+ {[%emt 0:00:18]} 57. Kb4 {[%emt 0:00:30]} Qe7+ {[%emt 0:00:05]} 58. Kb5 {[%emt 0:00:07]} Qe8+ {[%emt 0:00:07]} 59. Kb4 {[%emt 0:00:05]} 1/2-1/2